bitfinex-derivatives/quotes_BTCF0:USTF0_20250719
["timestamp","ask_amount","ask_price","bid_price","bid_amount"]
[1752933566907,0.0827,118250.0,118240.0,2.0223847]
[1752933567107,0.0827,118250.0,118240.0,2.06805363]
[1752933568011,1e-08,118250.0,118240.0,2.36325363]
[1752933568206,0.3232943,118270.0,118260.0,0.201272]
[1752933568512,0.34045297,118270.0,118260.0,1.77265989]
[1752933569512,0.37409297,118270.0,118260.0,1.77265989]
[1752933570114,0.37409297,118270.0,118260.0,1.60362789]
[1752933571216,0.37409297,118270.0,118260.0,1.38732]
[1752933571417,0.37409297,118270.0,118260.0,1.60362789]
[1752933573521,0.37709297,118270.0,118260.0,1.60362789]
[1752933575823,0.3599343,118270.0,118260.0,1.64929682]
[1752933589833,0.3430998,118270.0,118260.0,1.81832892]
[1752933590032,0.3186198,118270.0,118260.0,1.81832892]
[1752933590428,0.3186198,118270.0,118260.0,1.60202103]
[1752933590631,0.3186198,118270.0,118260.0,1.81832892]
[1752933590931,0.3186198,118270.0,118260.0,1.77265999]
[1752933591426,0.2859798,118270.0,118260.0,1.77265999]
[1752933595634,0.2859798,118270.0,118260.0,1.60362789]
[1752933596737,0.3113098,118270.0,118260.0,1.60362789]
[1752933597231,0.2575398,118270.0,118260.0,1.77265989]
[1752933597636,0.2575398,118270.0,118260.0,1.556352]
[1752933597827,0.2575398,118270.0,118260.0,1.77265989]
[1752933598028,0.2575398,118270.0,118260.0,1.556352]
[1752933598227,0.2575398,118270.0,118260.0,1.77265989]
[1752933598438,0.1730278,118270.0,118260.0,1.77265989]
[1752933600236,0.004,118270.0,118260.0,1.98896778]
[1752933600435,0.305127,118290.0,118280.0,0.2495735]
[1752933600640,0.305127,118290.0,118280.0,2.00250928]
[1752933600641,0.18670744,118290.0,118280.0,2.00250928]
[1752933601742,0.18669654,118290.0,118280.0,2.00250928]
[1752933602141,0.18969654,118290.0,118280.0,2.00250928]
[1752933602840,0.18969654,118290.0,118280.0,2.07072691]
[1752933605041,0.18969654,118290.0,118280.0,1.85441902]
[1752933605243,0.19454654,118290.0,118280.0,2.07072691]
[1752933606344,0.21828654,118290.0,118280.0,2.07072691]
[1752933606547,0.21828654,118290.0,118280.0,1.90172341]
[1752933606945,0.21828654,118290.0,118280.0,2.07072691]
[1752933607147,0.21828654,118290.0,118280.0,1.90172341]
[1752933607347,0.21828654,118290.0,118280.0,2.07072691]
[1752933609551,0.21828654,118290.0,118280.0,1.90172341]
[1752933610351,0.24132654,118290.0,118280.0,1.90172341]
[1752933610551,0.24132654,118290.0,118280.0,2.07072691]
[1752933612251,0.21828654,118290.0,118280.0,2.07072691]
[1752933612856,0.2005792,118290.0,118280.0,2.07072691]
[1752933613056,0.2182622,118290.0,118280.0,2.07072691]
[1752933613256,0.2182622,118290.0,118280.0,1.63811113]
[1752933613449,0.2182622,118290.0,118280.0,2.07072691]
[1752933614457,0.2005792,118290.0,118280.0,2.07072691]
[1752933614956,0.21826265,118290.0,118280.0,2.07072691]
[1752933615957,0.19452265,118290.0,118280.0,2.07072691]
[1752933616357,0.19452265,118290.0,118280.0,2.36592691]
[1752933617758,0.19452265,118290.0,118280.0,1.93331113]
[1752933618058,0.1768392,118290.0,118280.0,2.36592691]
[1752933618252,0.1719892,118290.0,118280.0,2.36592691]
[1752933623954,0.1719892,118290.0,118280.0,2.07072691]
[1752933624158,0.1719892,118290.0,118280.0,2.38488829]
[1752933629769,0.1719892,118290.0,118280.0,2.44565037]
[1752933634566,0.1767592,118290.0,118280.0,2.44565037]
[1752933640974,0.003,118290.0,118280.0,2.49921738]
[1752933641165,0.3071882,118300.0,118290.0,0.2013494]
[1752933641368,0.2534782,118300.0,118290.0,1.82292126]
[1752933641567,0.2112312,118300.0,118290.0,1.98498219]
[1752933642168,0.1689864,118300.0,118290.0,1.98498219]
[1752933643072,0.1689864,118300.0,118290.0,2.04574427]
[1752933643272,0.1689864,118300.0,118290.0,1.98498219]
[1752933643674,0.1689864,118300.0,118290.0,2.04574427]
[1752933645375,0.1737564,118300.0,118290.0,1.88368334]
[1752933645577,0.1977064,118300.0,118290.0,1.88368334]
[1752933647073,0.1977064,118300.0,118290.0,1.77562006]
[1752933647276,0.1977064,118300.0,118290.0,1.18238006]
[1752933647578,0.1977064,118300.0,118290.0,1.77486006]
[1752933655884,0.1977064,118300.0,118290.0,1.71409798]
[1752933657683,0.1977064,118300.0,118290.0,1.41889798]
[1752933659279,0.1977064,118300.0,118290.0,1.47966006]
[1752933659981,0.1977064,118300.0,118290.0,1.41889798]
[1752933660884,0.2000664,118300.0,118290.0,1.41889798]
[1752933661083,0.2232364,118300.0,118290.0,1.41889798]
[1752933661282,0.2542464,118300.0,118290.0,1.41889798]
[1752933661479,0.2542464,118300.0,118290.0,1.24990858]
[1752933661685,0.2542464,118300.0,118290.0,0.65742858]
[1752933661880,0.254332,118300.0,118280.0,0.78270346]
[1752933662087,0.2549895,118290.0,118280.0,0.94719996]
[1752933662389,0.2549895,118290.0,118280.0,1.53767996]
[1752933663687,0.2549895,118290.0,118280.0,1.24247996]
[1752933664095,0.2549895,118290.0,118280.0,1.26573996]
[1752933665892,0.2549895,118290.0,118280.0,1.32650204]
[1752933666094,0.2549895,118290.0,118280.0,1.26573996]
[1752933668599,0.2549895,118290.0,118280.0,0.67525996]
[1752933668892,0.2549895,118290.0,118280.0,1.37329898]
[1752933672202,0.2549895,118290.0,118280.0,1.37265898]
[1752933672503,0.2549895,118290.0,118280.0,1.34939898]
[1752933674097,0.2549895,118290.0,118280.0,1.37265898]
[1752933677505,0.9469783,118290.0,118280.0,0.01896138]
[1752933677809,0.96471143,118290.0,118280.0,0.60748138]
[1752933678010,0.96471143,118290.0,118280.0,0.76959018]
[1752933678205,0.96471143,118290.0,118280.0,0.7506288]
[1752933678602,0.79563143,118290.0,118280.0,0.7506288]
[1752933679005,0.63352263,118290.0,118280.0,0.58852]
[1752933680810,1.26881106,118290.0,118280.0,0.5077403]
[1752933681008,1.26881106,118290.0,118280.0,0.4732501]
[1752933681203,1.2866889,118290.0,118280.0,0.4401114]
[1752933681406,1.26881106,118290.0,118280.0,0.4401114]
[1752933682002,1.76881106,118290.0,118280.0,0.4401114]
[1752933682206,1.51881106,118290.0,118280.0,0.4401114]
[1752933683513,1.30260263,118290.0,118280.0,0.4401114]
[1752933685811,0.2026639,118280.0,118270.0,0.83586843]
[1752933686112,0.2553339,118280.0,118270.0,0.86059843]
[1752933687619,0.27217741,118280.0,118270.0,0.86059843]
[1752933688118,0.27217741,118280.0,118270.0,0.86159843]
[1752933688317,0.27217741,118280.0,118270.0,0.64539]
[1752933688519,0.27217741,118280.0,118270.0,0.86159843]
[1752933689418,0.28989909,118280.0,118270.0,0.86159843]
[1752933689717,0.28989909,118280.0,118270.0,0.88597843]
[1752933689920,0.27217741,118280.0,118270.0,0.88597843]
[1752933691115,0.28990238,118280.0,118270.0,0.88597843]
[1752933693017,0.28990238,118280.0,118270.0,0.88653843]
[1752933698726,0.28990238,118280.0,118270.0,0.67033]
[1752933698926,0.45206934,118280.0,118270.0,0.83249696]
[1752933702030,0.81288677,118280.0,118270.0,0.75152696]
[1752933703132,0.97505373,118280.0,118270.0,0.5249326]
[1752933703732,1.47505373,118280.0,118270.0,0.5249326]
[1752933704527,0.1842125,118260.0,118250.0,0.42262]
[1752933704830,0.2553625,118260.0,118250.0,1.17202696]
[1752933706133,0.27311144,118260.0,118250.0,1.17202696]
[1752933707138,0.27311144,118260.0,118250.0,1.00986]
[1752933707338,0.27311144,118260.0,118250.0,1.33419392]
[1752933707537,0.27311144,118260.0,118250.0,1.33719392]
[1752933708639,0.23945144,118260.0,118250.0,1.33719392]
[1752933709939,0.23945144,118260.0,118250.0,1.33912392]
[1752933710933,0.27346144,118260.0,118250.0,1.17695696]
[1752933711138,0.27346144,118260.0,118250.0,1.33912392]
[1752933712939,0.27346144,118260.0,118250.0,1.34210392]
[1752933715240,0.27346144,118260.0,118250.0,1.17993696]
[1752933715940,0.2557125,118260.0,118250.0,1.17993696]
[1752933717541,0.2557125,118260.0,118250.0,1.34210392]
[1752933719941,0.2557125,118260.0,118250.0,1.17993696]
[1752933722038,0.1671125,118260.0,118250.0,1.51115062]
[1752933722242,0.2535391,118270.0,118260.0,0.2003324]
[1752933722543,0.2535391,118270.0,118260.0,1.07773328]
[1752933722941,0.2535391,118270.0,118260.0,0.80740423]
[1752933723441,0.2535391,118270.0,118260.0,0.63837183]
[1752933723642,0.3425591,118270.0,118260.0,0.4222]
[1752933723835,0.2112815,118270.0,118260.0,0.80740423]
[1752933724037,0.1388259,118270.0,118260.0,0.80740423]
[1752933724235,0.2535189,118280.0,118270.0,0.1690181]
[1752933724440,0.22901584,118280.0,118270.0,0.96216176]
[1752933724835,0.22901584,118280.0,118270.0,0.74598993]
[1752933725032,0.1690141,118280.0,118270.0,0.74598993]
[1752933725445,0.1690141,118280.0,118270.0,0.74698993]
[1752933725741,0.1690141,118280.0,118270.0,0.96316176]
[1752933727539,0.1689933,118290.0,118280.0,0.1690038]
[1752933727744,0.1689933,118290.0,118280.0,1.54938746]
[1752933730448,0.2230133,118290.0,118280.0,1.38038366]
[1752933730747,0.2230133,118290.0,118280.0,1.54938746]
[1752933736953,0.2230133,118290.0,118280.0,1.38038366]
[1752933737153,0.2390833,118290.0,118280.0,1.38038366]
[1752933737854,0.2390833,118290.0,118280.0,1.54938746]
[1752933738854,0.2419133,118290.0,118280.0,0.96214746]
[1752933739052,0.2580133,118290.0,118280.0,1.54910746]
[1752933740656,0.2580133,118290.0,118280.0,1.16393183]
[1752933750367,0.2580133,118290.0,118280.0,0.94776]
[1752933750562,0.2580133,118290.0,118280.0,1.16393183]
[1752933752169,0.27575272,118290.0,118280.0,1.16393183]
[1752933752864,0.27575272,118290.0,118280.0,0.94776]
[1752933753058,0.2580133,118290.0,118280.0,0.94776]
[1752933753259,0.49192807,118290.0,118280.0,0.58696]
[1752933753464,0.02989,118270.0,118260.0,0.63773391]
[1752933753768,0.2581382,118270.0,118260.0,1.16393183]
[1752933754765,0.2581382,118270.0,118260.0,1.16593183]
[1752933754965,0.2581382,118270.0,118260.0,1.27409158]
[1752933755575,0.2581382,118270.0,118260.0,0.94976]
[1752933755871,0.2581382,118270.0,118260.0,1.27409158]
[1752933757067,0.2581382,118270.0,118260.0,1.1659676]
[1752933762170,0.6189382,118270.0,118260.0,0.2884562]
[1752933762375,0.2752343,118260.0,118250.0,0.2162076]
[1752933762570,0.2752343,118260.0,118250.0,0.8031676]
[1752933762765,0.2752343,118260.0,118250.0,1.1639676]
[1752933762970,0.2752343,118260.0,118250.0,0.8031676]
[1752933763172,0.2035268,118250.0,118240.0,0.61208148]
[1752933763374,0.2581668,118250.0,118240.0,1.19900148]
[1752933763673,0.2581668,118250.0,118240.0,0.83820148]
[1752933764270,0.2581668,118250.0,118240.0,0.62299388]
[1752933764478,0.2581668,118250.0,118240.0,0.83920148]
[1752933765580,0.32615766,118250.0,118240.0,0.83920148]
[1752933765778,0.32615766,118250.0,118240.0,0.62299388]
[1752933766079,0.32615766,118250.0,118240.0,0.83920148]
[1752933766277,0.2581668,118250.0,118240.0,0.83920148]
[1752933768981,0.2581668,118250.0,118240.0,0.62299388]
[1752933769286,0.2581668,118250.0,118240.0,0.83920148]
[1752933770076,0.2581668,118250.0,118240.0,0.84176148]
[1752933770782,0.2581668,118250.0,118240.0,0.84336148]
[1752933772673,0.2581668,118250.0,118240.0,0.84636148]
[1752933772874,0.2581668,118250.0,118240.0,0.63015388]
[1752933773173,0.2581668,118250.0,118240.0,0.84636148]
[1752933774974,0.1937968,118250.0,118240.0,1.59243018]
[1752933775182,0.1674468,118250.0,118240.0,1.59243018]
[1752933779582,0.2157768,118250.0,118240.0,1.59243018]
[1752933780484,0.2222768,118250.0,118240.0,1.59243018]
[1752933781883,0.2157768,118250.0,118240.0,1.59243018]
[1752933782284,0.1674468,118250.0,118240.0,1.59243018]
[1752933785390,0.2157768,118250.0,118240.0,1.73283018]
[1752933790093,0.2157768,118250.0,118240.0,1.79359226]
[1752933793499,0.2222768,118250.0,118240.0,1.79359226]
[1752933797390,0.2157768,118250.0,118240.0,1.79359226]
[1752933800301,0.2157768,118250.0,118240.0,1.73283018]
[1752933800602,0.2157768,118250.0,118240.0,1.71376741]
[1752933801000,0.2157768,118250.0,118240.0,1.7678866]
[1752933802098,0.2218668,118250.0,118240.0,1.82864868]
[1752933803102,0.2218668,118250.0,118240.0,1.7678866]
[1752933803603,0.2218668,118250.0,118240.0,1.82864868]
[1752933806906,0.2218668,118250.0,118240.0,1.34211429]
[1752933807102,0.2218668,118250.0,118240.0,1.82864868]
[1752933813108,0.2218668,118250.0,118240.0,2.18944868]
[1752933814607,0.2218668,118250.0,118240.0,2.1286866]
[1752933815303,0.2218668,118250.0,118240.0,1.9882866]
[1752933816511,0.2157768,118250.0,118240.0,1.9882866]
[1752933816811,0.1438626,118260.0,118250.0,0.1690468]
[1752933816812,0.273874,118260.0,118250.0,0.1690468]
[1752933817108,0.2316149,118260.0,118250.0,1.03507064]
[1752933817508,0.2316149,118260.0,118250.0,0.87289251]
[1752933817706,0.2316149,118260.0,118250.0,0.93377879]
[1752933818308,0.2377049,118260.0,118250.0,0.93577879]
[1752933824012,0.0686618,118260.0,118250.0,0.93577879]
[1752933824313,0.2376943,118260.0,118250.0,0.93577879]
[1752933825610,0.2376943,118260.0,118250.0,0.93377879]
[1752933825811,0.2376943,118260.0,118250.0,0.93677879]
[1752933826011,0.2376943,118260.0,118250.0,0.93777879]
[1752933826521,0.2206125,118260.0,118250.0,0.93777879]
[1752933828017,0.1690325,118260.0,118250.0,0.93777879]
[1752933828219,0.3051217,118270.0,118260.0,0.1690325]
[1752933828418,0.3051217,118270.0,118260.0,1.60300689]
[1752933830120,0.3353417,118270.0,118260.0,1.60300689]
[1752933830320,0.3353417,118270.0,118260.0,1.60500689]
[1752933830620,0.3383617,118270.0,118260.0,1.60500689]
[1752933831220,0.3383617,118270.0,118260.0,1.80362876]
[1752933838825,0.3383617,118270.0,118260.0,1.63459626]
[1752933839423,0.50053983,118270.0,118260.0,0.94936]
[1752933839620,0.3383617,118270.0,118260.0,1.27371626]
[1752933842834,0.3383617,118270.0,118260.0,1.44274876]
[1752933844236,0.3383617,118270.0,118260.0,1.80354876]
[1752933845335,0.3383617,118270.0,118260.0,1.63451626]
[1752933845737,0.3383617,118270.0,118260.0,1.80354876]
[1752933846235,0.35611643,118270.0,118260.0,1.80354876]
[1752933851536,0.35611643,118270.0,118260.0,1.63451626]
[1752933852738,0.35611643,118270.0,118260.0,1.80354876]
[1752933854537,0.35611643,118270.0,118260.0,1.96572689]
[1752933854737,0.34094643,118270.0,118260.0,1.96572689]
[1752933854938,0.3231917,118270.0,118260.0,1.96572689]
[1752933855140,0.34095572,118270.0,118260.0,1.96572689]
[1752933855936,0.34095572,118270.0,118260.0,1.80354876]
[1752933856440,0.3231917,118270.0,118260.0,1.80354876]
[1752933856636,0.3385017,118270.0,118260.0,1.80354876]
[1752933856938,0.3201717,118270.0,118260.0,1.80354876]
[1752933857337,0.2779148,118270.0,118260.0,1.96572689]
[1752933857533,0.2206098,118270.0,118260.0,1.96572689]
[1752933857738,0.2145198,118270.0,118260.0,2.02661317]
[1752933857939,0.2145198,118270.0,118260.0,1.96572689]
[1752933858139,0.2145198,118270.0,118260.0,2.02661317]
[1752933858336,0.27670418,118280.0,118260.0,2.02661317]
[1752933858641,0.2153378,118280.0,118270.0,1.01635259]
[1752933858840,0.2634991,118290.0,118280.0,0.1690039]
[1752933859140,0.28126461,118290.0,118280.0,1.60269829]
[1752933859335,0.2634991,118290.0,118280.0,1.60269829]
[1752933860040,0.2634991,118290.0,118280.0,1.67138213]
[1752933860340,0.2634991,118290.0,118280.0,1.60269829]
[1752933860740,0.2634991,118290.0,118280.0,1.60469829]
[1752933862041,0.2634991,118290.0,118280.0,1.60269829]
[1752933862240,0.2634991,118290.0,118280.0,1.60569829]
[1752933863143,0.2575691,118290.0,118280.0,1.60569829]
[1752933863443,0.2112491,118290.0,118280.0,1.60569829]
[1752933863633,0.2112491,118290.0,118280.0,1.60669829]
[1752933864442,0.2589391,118290.0,118280.0,1.60669829]
[1752933865142,0.2589391,118290.0,118280.0,1.67590356]
[1752933870349,0.2589391,118290.0,118280.0,1.81620356]
[1752933873345,0.3074586,118300.0,118290.0,0.1689897]
[1752933873649,0.3074586,118300.0,118290.0,0.87328901]
[1752933874753,0.3074586,118300.0,118290.0,0.87528901]
[1752933875649,0.3229286,118300.0,118290.0,0.87528901]
[1752933875848,0.3412586,118300.0,118290.0,0.87528901]
[1752933877057,0.3412586,118300.0,118290.0,0.55093275]
[1752933877354,0.3412586,118300.0,118290.0,0.87528901]
[1752933880354,0.3412586,118300.0,118290.0,1.01558901]
[1752933881157,0.2990123,118300.0,118290.0,1.01558901]
[1752933885346,0.2990123,118300.0,118290.0,0.87528901]
[1752933886556,0.04769,118300.0,118290.0,1.03746714]
[1752933886757,0.04769,118300.0,118290.0,0.87528901]
[1752933886948,0.05398,118300.0,118290.0,1.03746714]
[1752933887655,0.05398,118300.0,118290.0,1.03846714]
[1752933887850,0.2229554,118300.0,118290.0,1.03846714]
[1752933888059,0.2229554,118300.0,118290.0,0.87628901]
[1752933888360,0.2229554,118300.0,118290.0,0.87728901]
[1752933889459,0.05398,118300.0,118290.0,0.87728901]
[1752933890456,0.05398,118300.0,118290.0,1.10035342]
[1752933890962,0.05398,118300.0,118290.0,0.93817529]
[1752933891158,0.2229554,118300.0,118290.0,0.93817529]
[1752933891761,0.05398,118300.0,118290.0,0.93817529]
[1752933894468,0.2229554,118300.0,118290.0,0.93817529]
[1752933896768,0.05398,118300.0,118290.0,0.93817529]
[1752933898868,0.2229556,118300.0,118290.0,1.29897529]
[1752933900374,0.2229556,118300.0,118290.0,1.43927529]
[1752933900770,0.2393856,118300.0,118290.0,1.43927529]
[1752933900965,0.2589656,118300.0,118290.0,1.43927549]
[1752933901167,0.2589656,118300.0,118290.0,1.27028559]
[1752933901662,0.2589656,118300.0,118290.0,1.43927549]
[1752933904776,0.2589656,118300.0,118290.0,1.11491923]
[1752933905073,0.2589656,118300.0,118290.0,1.43927549]
[1752933905673,0.2589656,118300.0,118290.0,1.29897549]
[1752933913575,0.2589656,118300.0,118290.0,0.80562933]
[1752933913879,0.42114373,118300.0,118290.0,1.55352746]
[1752933914074,0.2589656,118300.0,118290.0,1.13184118]
[1752933918472,0.2589656,118300.0,118290.0,1.46300921]
[1752933923184,0.2589656,118300.0,118290.0,1.29401931]
[1752933926586,0.2589656,118300.0,118290.0,0.96966305]
[1752933926788,0.2589656,118300.0,118290.0,1.29401931]
[1752933928589,0.2589656,118300.0,118290.0,0.38394305]
[1752933928787,0.43889841,118300.0,118290.0,0.60882305]
[1752933928989,0.43889841,118300.0,118290.0,0.77100118]
[1752933930388,0.79969841,118300.0,118290.0,0.77100118]
[1752933932188,0.79969841,118300.0,118290.0,0.77000118]
[1752933935892,0.79969841,118300.0,118290.0,0.76700118]
[1752933936090,0.79969841,118300.0,118290.0,0.76900118]
[1752933936496,0.79969841,118300.0,118290.0,0.60682305]
[1752933936889,0.79969841,118300.0,118290.0,0.76892118]
[1752933938797,0.63752028,118300.0,118290.0,0.76892118]
[1752933938994,0.79969841,118300.0,118290.0,0.76892118]
[1752933939796,0.79969841,118300.0,118290.0,0.60674305]
[1752933940000,0.79969841,118300.0,118290.0,0.76892118]
[1752933940492,0.63752028,118300.0,118290.0,0.76892118]
[1752933940699,0.27672028,118300.0,118290.0,0.76892118]
[1752933940896,0.27672028,118300.0,118290.0,1.12972118]
[1752933941496,0.27672028,118300.0,118290.0,0.76892118]
[1752933942597,0.27672028,118300.0,118290.0,1.12972118]
[1752933944900,0.27672028,118300.0,118290.0,0.96754305]
[1752933945105,0.27672028,118300.0,118290.0,1.12972118]
[1752933949703,0.27672028,118300.0,118290.0,1.29189931]
[1752933951507,0.27672028,118300.0,118290.0,0.96754305]
[1752933951704,0.27672028,118300.0,118290.0,1.12972118]
[1752933960914,0.26024028,118300.0,118290.0,1.29189931]
[1752933961115,0.24071028,118300.0,118290.0,1.46088921]
[1752933961421,0.18673028,118300.0,118290.0,1.46088921]
[1752933963724,0.23359028,118300.0,118290.0,1.46088921]
[1752933964711,0.23359966,118300.0,118290.0,1.46088921]
[1752933965313,0.25136377,118300.0,118290.0,1.46088921]
[1752933970425,0.25717377,118300.0,118290.0,1.46088921]
[1752933974324,0.29198377,118300.0,118290.0,0.38194305]
[1752933974625,0.29198377,118300.0,118290.0,1.12940118]
[1752933974831,0.4541619,118300.0,118290.0,1.12940118]
[1752933975728,0.29198377,118300.0,118290.0,1.12940118]
[1752933977233,0.29198377,118300.0,118290.0,0.54412118]
[1752933977524,0.29198377,118300.0,118290.0,1.12936118]
[1752933979334,0.29198377,118300.0,118290.0,0.54412118]
[1752933979632,0.29198377,118300.0,118290.0,1.12936118]
[1752933980336,0.29198377,118300.0,118290.0,1.26966118]
[1752933980537,0.29198377,118300.0,118290.0,1.12936118]
[1752933983040,0.29198377,118300.0,118290.0,0.54412118]
[1752933983339,0.4541619,118300.0,118290.0,0.76852118]
[1752933984141,0.29198377,118300.0,118290.0,0.76852118]
[1752933985941,0.29198377,118300.0,118290.0,1.11017813]
[1752933986544,0.29198377,118300.0,118290.0,0.948]
[1752933986746,0.29198377,118300.0,118290.0,0.93065277]
[1752933986942,0.29198377,118300.0,118290.0,0.96709651]
[1752933987141,0.29198377,118300.0,118290.0,1.29145277]
[1752933987742,0.29198377,118300.0,118290.0,1.46044267]
[1752933988541,0.29198377,118300.0,118290.0,1.13608641]
[1752933988743,0.29198377,118300.0,118290.0,1.29145277]
[1752933988946,0.29198377,118300.0,118290.0,1.18319512]
[1752933989147,0.29198377,118300.0,118290.0,0.96709651]
[1752933989340,0.29198377,118300.0,118290.0,1.18319512]
[1752933989645,0.29198377,118300.0,118290.0,0.96709651]
[1752933989846,0.29198377,118300.0,118290.0,1.18319512]
[1752933994044,0.29198502,118300.0,118290.0,1.18319512]
[1752933994548,0.29198502,118300.0,118290.0,0.96709651]
[1752933994743,0.29198502,118300.0,118290.0,1.18319512]
[1752933998852,0.29198522,118300.0,118290.0,1.18319512]
[1752934000147,0.29198522,118300.0,118290.0,0.96709651]
[1752934000343,0.29198522,118300.0,118290.0,1.18319512]
[1752934002560,0.30898862,118300.0,118290.0,1.18319512]
[1752934006555,0.30898862,118300.0,118290.0,0.96709651]
[1752934006963,0.30898862,118300.0,118290.0,1.18319512]
[1752934008168,0.88588723,118300.0,118290.0,0.002]
[1752934008369,0.88588723,118300.0,118290.0,0.59768]
[1752934009167,1.38588723,118300.0,118290.0,0.59768]
[1752934010467,1.38588723,118300.0,118290.0,0.002]
[1752934011268,1.16978862,118300.0,118290.0,0.002]
[1752934011566,1.38588723,118300.0,118290.0,0.002]
[1752934013770,0.1689899,118290.0,118280.0,0.5952]
[1752934013970,0.27521546,118290.0,118280.0,0.5952]
[1752934015071,0.43736507,118290.0,118280.0,0.75734961]
[1752934017377,0.27521546,118290.0,118280.0,0.75734961]
[1752934017579,0.43736507,118290.0,118280.0,0.75734961]
[1752934018272,0.43736507,118290.0,118280.0,0.91949922]
[1752934018468,0.43736507,118290.0,118280.0,0.5952]
[1752934018773,0.43736507,118290.0,118280.0,0.75734961]
[1752934019375,0.27521546,118290.0,118280.0,0.75734961]
[1752934019575,0.43736507,118290.0,118280.0,0.75734961]
[1752934020576,0.2238984,118270.0,118260.0,0.42163914]
[1752934020779,0.4369115,118270.0,118260.0,1.11694961]
[1752934020978,0.4369115,118270.0,118260.0,0.16214961]
[1752934021182,0.4369115,118270.0,118260.0,0.75642961]
[1752934021476,0.45465052,118270.0,118260.0,0.75642961]
[1752934021883,0.45465052,118270.0,118260.0,0.75842961]
[1752934022083,0.4369115,118270.0,118260.0,0.75842961]
[1752934022576,0.81544358,118270.0,118260.0,0.75842961]
[1752934022770,0.81544358,118270.0,118260.0,0.59628]
[1752934022970,0.86959339,118270.0,118260.0,0.59628]
[1752934023175,0.86959339,118270.0,118260.0,0.002]
[1752934023581,0.2517113,118260.0,118250.0,0.59416]
[1752934023876,0.83459072,118260.0,118250.0,0.5675496]
[1752934024076,0.85231309,118260.0,118240.0,0.01328899]
[1752934024280,0.2575053,118250.0,118240.0,0.81041942]
[1752934024480,0.27452717,118250.0,118240.0,0.81041942]
[1752934025479,0.27452717,118250.0,118240.0,0.81541942]
[1752934026785,0.27452717,118250.0,118240.0,0.81741942]
[1752934035996,0.27452717,118250.0,118240.0,1.17821942]
[1752934042896,0.43677371,118250.0,118240.0,1.28641308]
[1752934043302,0.27452717,118250.0,118240.0,1.28641308]
[1752934046103,0.43677371,118250.0,118240.0,1.28641308]
[1752934046506,0.27452717,118250.0,118240.0,1.28641308]
[1752934046704,0.43677371,118250.0,118240.0,1.28641308]
[1752934047806,0.43677371,118250.0,118240.0,0.60112]
[1752934048005,0.43677371,118250.0,118240.0,0.92561308]
[1752934048907,0.27452717,118250.0,118240.0,0.92561308]
[1752934049204,0.43677371,118250.0,118240.0,0.92561308]
[1752934049405,0.45452897,118250.0,118240.0,0.92561308]
[1752934054004,0.45452897,118250.0,118240.0,1.28641308]
[1752934054210,0.45452897,118250.0,118240.0,0.92561308]
[1752934054404,0.45452897,118250.0,118240.0,1.28641308]
[1752934054605,0.45452897,118250.0,118240.0,0.92561308]
[1752934054798,0.29228243,118250.0,118240.0,0.92561308]
[1752934055003,0.45452897,118250.0,118240.0,0.92561308]
[1752934055599,0.45452897,118250.0,118240.0,0.69229308]
[1752934055804,0.45452897,118250.0,118240.0,0.92165308]
[1752934056708,0.81532897,118250.0,118240.0,0.5527121]
[1752934056905,0.2580764,118240.0,118230.0,0.59485533]
[1752934057105,0.96112474,118240.0,118230.0,0.76357619]
[1752934057904,0.60032474,118240.0,118230.0,0.01096965]
[1752934058104,0.2044005,118230.0,118220.0,0.22308568]
[1752934058304,0.78113704,118230.0,118220.0,0.75256654]
[1752934058504,0.79890476,118230.0,118220.0,0.75256654]
[1752934058807,0.79890476,118230.0,118220.0,0.91481308]
[1752934058808,0.63665822,118230.0,118220.0,0.91481308]
[1752934060311,0.27585822,118230.0,118220.0,1.27561308]
[1752934060609,0.23470822,118230.0,118220.0,1.27561308]
[1752934060909,0.1690805,118230.0,118220.0,1.60694932]
[1752934061205,0.1700805,118230.0,118220.0,1.60694932]
[1752934061504,0.1700805,118230.0,118220.0,1.61734186]
[1752934063009,0.1700805,118230.0,118220.0,1.34691413]
[1752934067613,0.1700805,118230.0,118220.0,1.40775327]
[1752934068017,0.1700805,118230.0,118220.0,1.76855327]
[1752934068717,0.1700805,118230.0,118220.0,1.04695327]
[1752934069017,0.1700805,118230.0,118220.0,1.76855327]
[1752934069318,0.1700805,118230.0,118220.0,1.17823327]
[1752934069517,0.2179405,118230.0,118220.0,1.76787327]
[1752934074219,0.2189405,118230.0,118220.0,1.76787327]
[1752934075614,0.23583548,118230.0,118220.0,0.96192138]
[1752934075815,0.24174548,118230.0,118220.0,1.76711327]
[1752934076021,0.24174548,118230.0,118220.0,1.76755327]
[1752934076225,0.27516548,118230.0,118220.0,1.70695483]
[1752934077125,0.27516548,118230.0,118220.0,1.00914357]
[1752934077420,0.27516548,118230.0,118220.0,1.53786443]
[1752934079225,0.27516548,118230.0,118220.0,1.70695483]
[1752934079911,0.27516548,118230.0,118220.0,1.34615483]
[1752934081620,0.27516548,118230.0,118220.0,1.34575483]
[1752934085117,0.27516548,118230.0,118220.0,0.75659483]
[1752934085328,0.27516548,118230.0,118220.0,1.34543483]
[1752934086929,0.27516548,118230.0,118220.0,1.45366146]
[1752934089632,0.27516548,118230.0,118220.0,1.5145006]
[1752934090031,0.2248505,118230.0,118220.0,1.45366146]
[1752934090233,0.1710805,118230.0,118220.0,2.03756986]
[1752934093041,0.1710805,118230.0,118220.0,1.76707841]
[1752934093640,0.2184805,118230.0,118220.0,1.76707841]
[1752934094840,0.2184805,118230.0,118220.0,1.76707851]
[1752934095845,0.2243905,118230.0,118220.0,1.76707851]
[1752934096845,0.2243905,118230.0,118220.0,1.04547851]
[1752934097045,0.2243905,118230.0,118220.0,1.76707851]
[1752934105049,0.2243905,118230.0,118220.0,1.59798801]
[1752934105352,0.2243905,118230.0,118220.0,1.76707851]
[1752934105550,0.2589705,118230.0,118220.0,1.59798801]
[1752934105751,0.2589705,118230.0,118220.0,1.23718801]
[1752934105945,0.27596276,118230.0,118220.0,1.23718801]
[1752934106351,0.27596276,118230.0,118220.0,0.87638801]
[1752934106552,0.27596276,118230.0,118220.0,0.81554887]
[1752934111452,0.27596276,118230.0,118220.0,0.95584887]
[1752934111656,0.27596276,118230.0,118220.0,0.81554887]
[1752934112458,0.27596276,118230.0,118220.0,0.22670887]
[1752934112646,0.27596276,118230.0,118220.0,0.81418887]
[1752934112961,0.27596276,118230.0,118220.0,0.92241686]
[1752934113459,0.27596276,118230.0,118220.0,0.983256]
[1752934113759,0.27596276,118230.0,118220.0,1.152346]
[1752934113956,0.27596276,118230.0,118220.0,1.513146]
[1752934118260,0.23547276,118230.0,118220.0,1.67541816]
[1752934118462,0.18807276,118230.0,118220.0,1.67541816]
[1752934119452,0.1710805,118230.0,118220.0,1.67541816]
[1752934119852,0.1700805,118230.0,118220.0,1.67541816]
[1752934120750,0.1690805,118230.0,118220.0,1.67641816]
[1752934120959,0.1948605,118230.0,118220.0,1.67641816]
[1752934121258,0.2185505,118230.0,118220.0,1.67641816]
[1752934121458,0.2175505,118230.0,118220.0,1.67641816]
[1752934122059,0.2175505,118230.0,118220.0,2.03721816]
[1752934123956,0.2536116,118240.0,118230.0,0.1690755]